[Event "Romanian GP Final KO 2023"]
[Site "Alba Iulia"]
[Date "2023.12.05"]
[Round "1.1"]
[White "Serban, Cristian-Stefan"]
[Black "Secheres, Adrian-Simion"]
[Result "0-1"]
[ECO "E94"]
[WhiteElo "2332"]
[BlackElo "2381"]
[Annotator "RC"]
[PlyCount "100"]
[EventDate "2023.12.04"]
[EventType "k.o."]
[EventCountry "ROU"]
[SourceTitle "playchess.com"]
[Source "ChessBase"]
[SourceQuality "1"]
[TimeControl "900+5"]

1. d4 {[%emt 0:00:01]} Nf6 {[%emt 0:00:02]} 2. c4 {[%emt 0:00:03]} g6 {[%emt 0:00:03]} 3. Nc3 {[%emt 0:00:02]} Bg7 {[%emt 0:00:01]} 4. e4 {[%emt 0:00:02]} d6 {[%emt 0:00:02]} 5. Nf3 {[%emt 0:00:02]} O-O {[%emt 0:00:03]} 6. Be2 {[%emt 0:00:01]} e5 {[%emt 0:00:05]} 7. O-O {[%emt 0:00:03]} Na6 {[%emt 0:00:05]} 8. Be3 {[%emt 0:00:58]} Qe7 {[%emt 0:00:04]} 9. Qc2 {[%emt 0:00:31]} Nb4 {[%emt 0:00:10]} 10. Qb1 {[%emt 0:01:31]} exd4 {[%emt 0:03:23]} 11. Nxd4 {[%emt 0:00:03]} c5 {[%emt 0:01:09]} 12. Nc2 {[%emt 0:02:34]} Re8 {[%emt 0:02:39]} 13. f3 {[%emt 0:00:16]} Be6 {[%emt 0:00:49]} 14. Rd1 {[%emt 0:01:35]} Nh5 {[%emt 0:00:57]} 15. g4 {[%emt 0:00:54]} Nxc2 {[%emt 0:00:02]} 16. Qxc2 {[%emt 0:00:04]} Bd4 {[%emt 0:00:08]} 17. Qd2 {[%emt 0:01:13]} Bxe3+ {[%emt 0:04:08]} 18. Qxe3 {[%emt 0:00:03]} Ng7 {[%emt 0:00:01]} 19. Qf4 {[%emt 0:00:22]} Red8 {[%emt 0:00:01]} 20. Rd2 {[%emt 0:00:24]} Rd7 {[%emt 0:00:11]} 21. Rad1 {[%emt 0:00:42]} Ne8 {[%emt 0:00:02]} 22. Bf1 {[%emt 0:01:34]} a6 {[%emt 0:00:04]} 23. a4 {[%emt 0:00:04]} b6 {[%emt 0:00:24]} 24. g5 {[%emt 0:00:20]} Rad8 {[%emt 0:00:10]} 25. h4 {[%emt 0:00:31]} Ng7 {[%emt 0:00:09]} 26. Qh2 {[%emt 0:00:04]} f6 {[%emt 0:00:25]} 27. Nd5 {[%emt 0:01:05]} Bxd5 {[%emt 0:00:03]} 28. Rxd5 {[%emt 0:00:01]} fxg5 {[%emt 0:00:36]} 29. hxg5 {[%emt 0:00:02]} Ne6 {[%emt 0:00:05]} 30. Qg3 {[%emt 0:01:21]} Nd4 {[%emt 0:00:07]} 31. Re1 {[%emt 0:00:01]} Rf8 {[%emt 0:00:26]} 32. Bg2 {[%emt 0:00:01]} Rdd8 {[%emt 0:00:33]} 33. Re3 {[%emt 0:00:56]} Nf5 {[%emt 0:00:07]} 34. Rxf5 {[%emt 0:00:03]} gxf5 {[%emt 0:00:01]} 35. Qh4 {[%emt 0:00:18]} Qe5 {[%emt 0:00:25]} 36. Re2 {[%emt 0:00:12]} f4 {[%emt 0:00:06]} 37. Rd2 {[%emt 0:00:03]} Rf7 {[%emt 0:00:03]} 38. Bh3 {[%emt 0:00:06]} Rg7 {[%emt 0:00:02]} 39. Bf5 {[%emt 0:00:01]} Rf8 {[%emt 0:00:08]} 40. Kh2 {[%emt 0:00:03]} Qe7 {[%emt 0:00:14]} 41. Rg2 {[%emt 0:00:01]} Qe5 {[%emt 0:00:02]} 42. g6 {[%emt 0:00:10]} hxg6 {[%emt 0:00:07]} 43. Bxg6 {[%emt 0:00:01]} Qf6 {[%emt 0:00:06]} 44. Bh7+ {[%emt 0:00:11]} Kh8 {[%emt 0:00:03]} 45. Qxf6 {[%emt 0:00:08]} Rxf6 {[%emt 0:00:01]} 46. Rxg7 {[%emt 0:00:02]} Kxg7 {[%emt 0:00:02]} 47. Bf5 {[%emt 0:00:01]} Rf8 {[%emt 0:00:02]} 48. Kh3 {[%emt 0:00:01]} Kf6 {[%emt 0:00:01]} 49. Kg4 {[%emt 0:00:07]} Ke5 {[%emt 0:00:01]} 50. b3 {[%emt 0:00:04]} Rh8 {[%emt 0:00:01]} 0-1

[Event "Romanian GP Final KO 2023"]
[Site "Alba Iulia"]
[Date "2023.12.05"]
[Round "1.1"]
[White "Ciolacu, Alessia-Mihaela"]
[Black "Ghimpu, Samuel-Timotei"]
[Result "0-1"]
[ECO "E24"]
[WhiteElo "2175"]
[BlackElo "2472"]
[Annotator "RC"]
[PlyCount "55"]
[EventDate "2023.12.04"]
[EventType "k.o."]
[EventCountry "ROU"]
[SourceTitle "playchess.com"]
[Source "ChessBase"]
[SourceQuality "1"]
[TimeControl "900+5"]

1. d4 {[%emt 0:00:03]} Nf6 {[%emt 0:00:11]} 2. c4 {[%emt 0:00:02]} e6 {[%emt 0:00:04]} 3. Nc3 {[%emt 0:00:03]} Bb4 {[%emt 0:00:34]} 4. a3 {[%emt 0:00:04]} Bxc3+ {[%emt 0:00:03]} 5. bxc3 {[%emt 0:00:02]} Nc6 {[%emt 0:02:31]} 6. f3 {[%emt 0:00:14]} b6 {[%emt 0:01:48]} 7. e4 {[%emt 0:00:10]} Ba6 {[%emt 0:00:01]} 8. Bd3 {[%emt 0:00:35]} Na5 {[%emt 0:00:07]} 9. Qe2 {[%emt 0:00:49]} c5 {[%emt 0:00:02]} 10. d5 {[%emt 0:01:03]} e5 {[%emt 0:04:15]} 11. Bg5 {[%emt 0:01:07]} h6 {[%emt 0:00:09]} 12. Bh4 {[%emt 0:00:03]} g5 {[%emt 0:00:12]} 13. Bg3 {[%emt 0:00:25]} Qe7 {[%emt 0:00:01]} 14. Nh3 {[%emt 0:04:03]} O-O-O {[%emt 0:00:15]} 15. Nf2 {[%emt 0:00:18]} Nh5 {[%emt 0:00:50]} 16. Nd1 {[%emt 0:04:50]} Nf4 {[%emt 0:00:01]} 17. Qf1 {[%emt 0:01:09]} Nxd3+ {[%emt 0:02:02]} 18. Qxd3 {[%emt 0:00:02]} Bxc4 {[%emt 0:00:18]} 19. Qb1 {[%emt 0:00:19]} f5 {[%emt 0:00:05]} 20. Ne3 {[%emt 0:00:32]} f4 {[%emt 0:00:02]} 21. Nf5 {[%emt 0:00:16]} Qf6 {[%emt 0:00:28]} 22. Bf2 {[%emt 0:00:07]} Rdf8 {[%emt 0:00:50]} 23. d6 {[%emt 0:00:21]} Nc6 {[%emt 0:01:54]} 24. Qb2 {[%emt 0:00:02]} Be6 {[%emt 0:00:09]} 25. Rd1 {[%emt 0:00:21]} Bxf5 {[%emt 0:00:02]} 26. exf5 {[%emt 0:00:02]} Qxf5 {[%emt 0:00:05]} 27. Qb5 {[%emt 0:00:08]} e4 {[%emt 0:00:06]} 28. fxe4 {[%emt 0:00:15]} 0-1

[Event "Romanian GP Final KO 2023"]
[Site "Alba Iulia"]
[Date "2023.12.05"]
[Round "1.1"]
[White "Obada, Ema"]
[Black "Toma, Radu-Cristian"]
[Result "1-0"]
[ECO "B30"]
[WhiteElo "2035"]
[BlackElo "2387"]
[Annotator "RC"]
[PlyCount "117"]
[EventDate "2023.12.04"]
[EventType "k.o."]
[EventCountry "ROU"]
[SourceTitle "playchess.com"]
[Source "ChessBase"]
[SourceQuality "1"]
[TimeControl "900+5"]

1. e4 {[%emt 0:00:03]} c5 {[%emt 0:00:03]} 2. Nf3 {[%emt 0:00:02]} Nc6 {[%emt 0:00:06]} 3. Bb5 {[%emt 0:00:03]} e6 {[%emt 0:00:02]} 4. O-O {[%emt 0:00:04]} Nge7 {[%emt 0:00:03]} 5. d4 {[%emt 0:00:03]} cxd4 {[%emt 0:00:21]} 6. Nxd4 {[%emt 0:00:03]} Nxd4 {[%emt 0:00:28]} 7. Qxd4 {[%emt 0:00:05]} Nc6 {[%emt 0:00:03]} 8. Qc3 {[%emt 0:00:20]} Qf6 {[%emt 0:04:19]} 9. Qxf6 {[%emt 0:01:42]} gxf6 {[%emt 0:00:03]} 10. Be3 {[%emt 0:00:44]} b6 {[%emt 0:00:14]} 11. Nc3 {[%emt 0:02:20]} Bb7 {[%emt 0:00:19]} 12. Rad1 {[%emt 0:03:30]} a6 {[%emt 0:01:07]} 13. Bd3 {[%emt 0:01:29]} b5 {[%emt 0:01:12]} 14. f4 {[%emt 0:00:33]} Rg8 {[%emt 0:00:07]} 15. Ne2 {[%emt 0:00:29]} Nb4 {[%emt 0:01:17]} 16. a3 {[%emt 0:00:25]} Nxd3 {[%emt 0:00:08]} 17. cxd3 {[%emt 0:00:02]} d5 {[%emt 0:01:10]} 18. Ng3 {[%emt 0:00:24]} Bd6 {[%emt 0:00:40]} 19. Bd4 {[%emt 0:01:10]} Be7 {[%emt 0:00:57]} 20. Rc1 {[%emt 0:01:24]} Rc8 {[%emt 0:00:19]} 21. Rxc8+ {[%emt 0:00:19]} Bxc8 {[%emt 0:00:03]} 22. exd5 {[%emt 0:00:12]} exd5 {[%emt 0:00:11]} 23. Rc1 {[%emt 0:00:09]} Kd7 {[%emt 0:00:13]} 24. Nf5 {[%emt 0:00:28]} Bd8 {[%emt 0:00:01]} 25. Ne3 {[%emt 0:00:21]} Bb7 {[%emt 0:00:07]} 26. Kf2 {[%emt 0:00:05]} Be7 {[%emt 0:00:22]} 27. Nf5 {[%emt 0:00:08]} Bd8 {[%emt 0:00:06]} 28. g3 {[%emt 0:00:09]} Re8 {[%emt 0:00:12]} 29. Nh6 {[%emt 0:00:16]} Be7 {[%emt 0:00:32]} 30. Nxf7 {[%emt 0:00:07]} Bf8 {[%emt 0:00:02]} 31. Bxf6 {[%emt 0:00:14]} Ke6 {[%emt 0:00:12]} 32. Rc7 {[%emt 0:00:02]} Kxf6 {[%emt 0:00:09]} 33. Rxb7 {[%emt 0:00:01]} Bc5+ {[%emt 0:00:02]} 34. Kf3 {[%emt 0:00:06]} Re3+ {[%emt 0:00:05]} 35. Kg4 {[%emt 0:00:01]} Bd4 {[%emt 0:00:16]} 36. Ng5 {[%emt 0:00:03]} Re7 {[%emt 0:00:23]} 37. Nxh7+ {[%emt 0:00:08]} Kf7 {[%emt 0:00:09]} 38. Ng5+ {[%emt 0:00:01]} Kf8 {[%emt 0:00:08]} 39. Rxe7 {[%emt 0:00:02]} Kxe7 {[%emt 0:00:02]} 40. b3 {[%emt 0:00:01]} a5 {[%emt 0:00:29]} 41. a4 {[%emt 0:00:01]} Kd6 {[%emt 0:00:07]} 42. axb5 {[%emt 0:00:09]} Bc3 {[%emt 0:00:06]} 43. Nf3 {[%emt 0:00:16]} Kc5 {[%emt 0:00:02]} 44. d4+ {[%emt 0:00:04]} Kxb5 {[%emt 0:00:04]} 45. f5 {[%emt 0:00:01]} Kb4 {[%emt 0:00:04]} 46. f6 {[%emt 0:00:25]} Kxb3 {[%emt 0:00:01]} 47. Ne5 {[%emt 0:00:06]} a4 {[%emt 0:00:26]} 48. Nd3 {[%emt 0:00:06]} Bxd4 {[%emt 0:00:08]} 49. f7 {[%emt 0:00:01]} Bg7 {[%emt 0:00:02]} 50. Nc5+ {[%emt 0:00:05]} Kc4 {[%emt 0:00:17]} 51. Ne6 {[%emt 0:00:04]} Bh6 {[%emt 0:00:18]} 52. Kh5 {[%emt 0:00:00]} a3 {[%emt 0:00:01]} 53. Kxh6 {[%emt 0:00:01]} a2 {[%emt 0:00:02]} 54. f8=Q {[%emt 0:00:02]} a1=Q {[%emt 0:00:03]} 55. Qc5+ {[%emt 0:00:04]} Kd3 {[%emt 0:00:05]} 56. Qxd5+ {[%emt 0:00:02]} Ke2 {[%emt 0:00:02]} 57. Nf4+ {[%emt 0:00:03]} Kf2 {[%emt 0:00:04]} 58. Qd2+ {[%emt 0:00:06]} Kf3 {[%emt 0:00:02]} 59. Qe2# {[%emt 0:00:02]} 1-0

[Event "Romanian GP Final KO 2023"]
[Site "Alba Iulia"]
[Date "2023.12.05"]
[Round "1.2"]
[White "Deac, Bogdan-Daniel"]
[Black "Parligras, Mircea-Emilian"]
[Result "1-0"]
[ECO "A07"]
[WhiteElo "2690"]
[BlackElo "2539"]
[Annotator "TA"]
[PlyCount "76"]
[EventDate "2023.12.04"]
[EventType "k.o."]
[EventCountry "ROU"]
[SourceTitle "playchess.com"]
[Source "ChessBase"]
[SourceQuality "1"]
[TimeControl "900+5"]

{[%evp 9,76,16,23,20,19,14,29,20,22,20,20,23,17,15,24,12,24,20,18,15,20,6,8,2,11,0,8,-12,20,10,28,20,25,11,25,-6,27,0,39,31,35,18,25,24,25,25,25,12,20,7,70,65,65,65,79,25,95,0,64,67,149,148,150,149,148,122,252,236,375]} 1. Nf3 {[%emt 0:00:02]} d5 {[%emt 0:00:02]} 2. g3 {[%emt 0:00:02]} Bg4 {[%emt 0:00:07]} 3. Bg2 {[%emt 0:00:01]} e6 {[%emt 0:00:01]} 4. O-O {[%emt 0:00:08]} Nf6 {[%emt 0:00:05]} 5. h3 {[%emt 0:00:11]} Bh5 {[%emt 0:00:05] [#]} 6. c4 $1 {[%emt 0:00:16] A07: Réti Opening: New York and Capablanca Systems.} c6 {[%emt 0:00:08]} 7. d4 {[%emt 0:00:39]} Nbd7 {[%emt 0:00:13]} 8. cxd5 {[%emt 0:02:00] White has an edge.} exd5 {[%emt 0:00:10]} 9. Qb3 {[%emt 0:00:21] 9.Ne5 deserves study.} Qb6 {[%emt 0:00:41]} 10. Qe3+ {[%emt 0:00:03]} Be7 {[%emt 0:00:01]} 11. Nh4 {[%emt 0:00:03] Hoping for Nf5.} Bg6 {[%emt 0:00:39] Dodges Nf5} 12. Nxg6 {[%emt 0:00:27]} hxg6 {[%emt 0:00:03]} 13. Nc3 {[%emt 0:00:11][%cal Ob2b4]} Qd8 {[%emt 0:00:19]} 14. Qd3 {[%emt 0:03:41]} O-O {[%emt 0:00:08]} 15. Bf4 {[%emt 0:00:03]} Re8 {[%emt 0:00:18]} 16. Rab1 {[%emt 0:00:03] [#]} a5 $146 {[%emt 0:01:35]} ({Predecessor:} 16... Bb4 17. a3 Bxc3 18. bxc3 b5 19. a4 a6 20. axb5 axb5 21. Ra1 Nb6 22. g4 Nc4 {1-0 Kaidanov,G (2549)-Fathy,E (2300) Titled Tuesday intern op 18th Oct Early blitz 2022 (6)}) 17. Qc2 {[%emt 0:00:31]} Nb6 {[%emt 0:00:32]} 18. Rbd1 {[%emt 0:00:13]} Bd6 {[%emt 0:00:52]} 19. Bg5 {[%emt 0:00:56]} Qc7 {[%emt 0:00:55]} 20. h4 {[%emt 0:00:30]} Nh7 {[%emt 0:00:33]} 21. Bc1 {[%emt 0:02:03]} Nf6 {[%emt 0:00:29]} 22. Qd3 {[%emt 0:01:35]} Re6 {[%emt 0:00:36]} 23. Rfe1 {[%emt 0:00:22]} Ree8 {[%emt 0:01:16]} 24. a3 {[%emt 0:00:19]} Qd7 {[%emt 0:00:28]} 25. e4 {[%emt 0:01:44]} dxe4 {[%emt 0:00:03]} 26. Nxe4 {[%emt 0:00:02]} Nxe4 {[%emt 0:00:04]} 27. Bxe4 {[%emt 0:00:02]} Nd5 {[%emt 0:01:09]} 28. Bg5 {[%emt 0:00:24]} (28. Kg2 {is more complex.} a4 29. Bg5 Bf8 30. Bf3) 28... Re6 {[%emt 0:01:58]} 29. Bxd5 {[%emt 0:00:31]} Rxe1+ {[%emt 0:00:05]} (29... cxd5 $11 30. Qb3 Bf8) 30. Rxe1 $14 {[%emt 0:00:02]} cxd5 {[%emt 0:00:03]} 31. Qb3 {[%emt 0:00:07] White is more active.} Qf5 {[%emt 0:01:53]} 32. Kg2 {[%emt 0:00:06]} (32. Qxb7 $6 Rb8 $11) (32. Bd2 $16) 32... Rc8 {[%emt 0:00:35] [#]} (32... Kh7 $11 {remains equal.}) 33. Re2 {[%emt 0:00:01]} ({White should try} 33. Qb6 $1 $16 {[%cal Rb6d6]} Qd7 34. Qxa5) 33... f6 {[%emt 0:00:27]} ({Black should play} 33... Kh7 $1 $11) 34. Bd2 {[%emt 0:00:08]} Kh7 {[%emt 0:01:09]} (34... Rc2 $14) 35. Bxa5 $16 {[%emt 0:00:06]} ({Much worse is} 35. Qxb7 $6 Rc2 36. Qf7 Bxg3 37. fxg3 Qd3 $11) 35... Rc1 {[%emt 0:00:05]} 36. Be1 {[%emt 0:00:05]} (36. Qxb7 $2 {too greedy.} Bxg3 37. Qb3 Bxh4 $19) ({Don't take} 36. Bd2 Rc2 $16) 36... Qb1 {[%emt 0:00:09]} 37. Qe3 {[%emt 0:00:05]} b5 {[%emt 0:00:06]} (37... Rd1 $16 38. h5 gxh5) 38. Qe6 $18 {[%emt 0:00:02][%csl LRd5,LRd6]} b4 {[%emt 0:00:13] Weighted Error Value: White=0.13 (very precise) /Black=0.22 (precise)} (38... Bc7 {was worth a try.} 39. Qe8 Ba5) 1-0

[Event "Romanian GP Final KO 2023"]
[Site "Alba Iulia"]
[Date "2023.12.05"]
[Round "1.2"]
[White "Chigaev, Maksim"]
[Black "Kantor, Gergely"]
[Result "1-0"]
[ECO "D00"]
[WhiteElo "2626"]
[BlackElo "2527"]
[Annotator "TA"]
[PlyCount "71"]
[EventDate "2023.12.04"]
[EventType "k.o."]
[EventCountry "ROU"]
[SourceTitle "playchess.com"]
[Source "ChessBase"]
[SourceQuality "1"]
[TimeControl "900+5"]

{[%evp 9,71,0,10,0,0,0,7,0,22,0,61,0,0,-6,20,22,108,101,105,96,98,67,134,141,159,111,101,81,95,108,235,125,164,161,175,159,177,181,253,253,219,133,207,227,230,236,245,245,257,175,447,438,1426,1443,1339,1323,1143,1091,12825,12812,2511,1930,1842,1746]} 1. d4 {[%emt 0:00:02]} Nf6 {[%emt 0:00:02]} 2. Bg5 {[%emt 0:00:01]} d5 {[%emt 0:00:05]} 3. e3 {[%emt 0:00:09]} c5 {[%emt 0:00:13]} 4. Bxf6 {[%emt 0:00:06]} gxf6 {[%emt 0:00:04]} 5. dxc5 {[%emt 0:00:01]} Nc6 {[%emt 0:00:42]} 6. Qh5 {[%emt 0:03:30] D00: 1 d4 d5: Unusual lines.} e6 {[%emt 0:02:32]} 7. Nd2 {[%emt 0:00:02]} Bxc5 {[%emt 0:00:59]} 8. O-O-O {[%emt 0:00:04] The position is equal.} Bd7 {[%emt 0:00:37] [#]} 9. Ngf3 $146 {[%emt 0:00:44]} ({Predecessor:} 9. e4 Qe7 10. exd5 exd5 11. Qxd5 O-O-O 12. Qf3 Rhg8 13. g3 Ne5 14. Qe2 Bc6 15. f3 {0-1 Kotyurgin,I-Silenginsky,A RUS-Cup3 email 2003}) 9... Qa5 {[%emt 0:02:02]} (9... Qe7 $11) 10. a3 {[%emt 0:03:03]} (10. Kb1 $1 $14) 10... Be7 $11 {[%emt 0:02:00]} 11. Nb3 {[%emt 0:02:24]} Qa4 {[%emt 0:00:20]} 12. Nfd4 {[%emt 0:00:57]} Ne5 {[%emt 0:01:01]} (12... a6 $11) 13. f4 $16 {[%emt 0:00:15]} Nc4 {[%emt 0:00:08]} 14. Bxc4 {[%emt 0:00:07]} Qxc4 {[%emt 0:01:22]} 15. Kb1 {[%emt 0:00:18]} b5 {[%emt 0:01:15]} (15... Rc8 $14) 16. Rhe1 {[%emt 0:00:58]} b4 {[%emt 0:00:06] [#]} 17. a4 {[%emt 0:00:01][%mdl 512]} Rc8 {[%emt 0:00:11]} (17... Rd8 18. e4) 18. a5 {[%emt 0:00:34]} Qc7 {[%emt 0:01:34]} 19. Rd2 {[%emt 0:00:23] White is more active.} Qd6 {[%emt 0:00:22]} (19... h6 $16 {was worth a try.}) 20. g3 {[%emt 0:01:40]} ({White should play} 20. e4 $1 $18 {[%cal Re4d5]}) 20... f5 {[%emt 0:00:12]} 21. h3 {[%emt 0:00:01][%cal Bh2h3,Bh3g4][%mdl 32]} Bf6 {[%emt 0:00:18] [#]} 22. g4 $1 {[%emt 0:00:01][%cal Rg4f5]} fxg4 {[%emt 0:00:06]} 23. hxg4 {[%emt 0:00:01]} h6 {[%emt 0:00:03] [#]} (23... Bg7 {is a better defense.} 24. e4 Qxf4) 24. e4 $1 $18 {[%emt 0:00:22]} Qxf4 {[%emt 0:00:31]} 25. Nxe6 {[%emt 0:00:02][%mdl 64] Remove Defender} Bxe6 {[%emt 0:00:11]} (25... Qg3 $16 {was called for.} 26. Rf1 Qe5 27. Qxe5 {[%mdl 64] Remove Defender} (27. exd5 $2 Qxb2#) 27... Bxe5) 26. exd5 {[%emt 0:00:01][%mdl 64] Pin} O-O {[%emt 0:00:11] ...Bd7 would be deadly.} 27. dxe6 {[%emt 0:00:04]} fxe6 {[%emt 0:00:05]} 28. Rxe6 {[%emt 0:00:26] Black must now prevent Rd7.} Bg7 {[%emt 0:00:00]} 29. Rg6 {[%emt 0:00:21] Rd7 is the strong threat.} Rf6 $2 {[%emt 0:00:07]} (29... Rcd8) 30. Qd5+ {[%emt 0:00:13] White is clearly winning.} Kh8 {[%emt 0:00:04] [#]} (30... Rf7 $142 31. Nd4 (31. Qe6 Rcc7 $18) 31... Qf1+ 32. Ka2 Kh7) 31. Rxg7 $1 {[%emt 0:00:03][%mdl 576] Decoy} Kxg7 {[%emt 0:00:09]} 32. Qd7+ {[%emt 0:00:01]} Rf7 {[%emt 0:00:05]} 33. Qxc8 {[%emt 0:00:02] Threatens to win with Rd7.} Qf1+ {[%emt 0:00:04]} 34. Ka2 {[%emt 0:00:01]} Qb5 {[%emt 0:00:01]} 35. Rd1 {[%emt 0:00:23] Strongly threatening Qe6.} Qe2 {[%emt 0:00:09] Wards off Qe6} 36. Rd8 {[%emt 0:00:03] A cool game by Chigaev.   Weighted Error Value: White=0.24 (precise) /Black=0.47} 1-0

[Event "Romanian GP Final KO 2023"]
[Site "Alba Iulia"]
[Date "2023.12.05"]
[Round "1.2"]
[White "Lupulescu, Constantin"]
[Black "David, Alexandru-Vasile"]
[Result "1/2-1/2"]
[ECO "B76"]
[WhiteElo "2581"]
[BlackElo "2372"]
[Annotator "TA"]
[PlyCount "56"]
[EventDate "2023.12.04"]
[EventType "k.o."]
[EventCountry "ROU"]
[SourceTitle "playchess.com"]
[Source "ChessBase"]
[SourceQuality "1"]
[TimeControl "900+5"]

{[%evp 28,56,49,50,70,61,64,23,68,45,57,18,6,0,0,0,0,0,0,0,0,0,0,0,0,0,0,0,0,0,0]} 1. e4 {[%emt 0:00:05]} c5 {[%emt 0:00:02]} 2. Nf3 {[%emt 0:00:00]} d6 {[%emt 0:00:01]} 3. d4 {[%emt 0:00:04]} cxd4 {[%emt 0:00:02]} 4. Nxd4 {[%emt 0:00:01]} Nf6 {[%emt 0:00:02]} 5. Nc3 {[%emt 0:00:02]} g6 {[%emt 0:00:01]} 6. Be3 {[%emt 0:00:10]} Bg7 {[%emt 0:00:02]} 7. f3 {[%emt 0:00:05]} Nc6 {[%emt 0:00:01]} 8. Qd2 {[%emt 0:00:26]} O-O {[%emt 0:00:03]} 9. O-O-O {[%emt 0:00:17]} d5 {[%emt 0:00:01]} 10. exd5 {[%emt 0:00:02]} Nxd5 {[%emt 0:00:02]} 11. Nxc6 {[%emt 0:00:08]} bxc6 {[%emt 0:00:02]} 12. Bd4 {[%emt 0:00:02]} e5 {[%emt 0:00:01]} 13. Bc5 {[%emt 0:00:16]} Be6 {[%emt 0:00:03]} 14. Ne4 {[%emt 0:00:22]} Re8 {[%emt 0:00:01]} 15. h4 {[%emt 0:00:24]} h5 {[%emt 0:00:02] B76: Sicilian Dragon: Yugoslav Attack, 9 g4 and 9 0-0-0.} 16. Bc4 {[%emt 0:01:43] White is more active.} Nf4 {[%emt 0:00:02]} 17. Qxd8 {[%emt 0:03:39] [#]} Raxd8 $146 {[%emt 0:00:15] White has an edge.} ({Predecessor:} 17... Rexd8 18. Bxe6 Nxe6 19. Be3 Nf4 20. Bxf4 exf4 21. Rhe1 Bd4 22. c3 Bb6 23. Kc2 Kf8 {½-½ Pheby,I (2501)-Drake Diez De Rivera,P (2537) Yury Sakharov mem-A email 2006}) 18. Bxe6 {[%emt 0:00:05]} Nxe6 {[%emt 0:00:02]} 19. Be3 {[%emt 0:00:18]} f5 {[%emt 0:02:51] The position is equal.} 20. Nd2 {[%emt 0:01:13]} Nf4 {[%emt 0:00:16]} 21. Bxf4 {[%emt 0:00:54]} exf4 {[%emt 0:00:02]} 22. Nc4 {[%emt 0:02:40]} Bf6 {[%emt 0:00:36]} 23. Rxd8 {[%emt 0:00:52]} Rxd8 $11 {[%emt 0:00:20] KRB-KRN} 24. c3 {[%emt 0:00:06]} Kg7 {[%emt 0:00:53]} 25. Kc2 {[%emt 0:01:02]} Re8 {[%emt 0:00:07]} 26. Kd3 {[%emt 0:00:06] Against Re2} Rd8+ {[%emt 0:00:02]} 27. Kc2 {[%emt 0:00:01]} Re8 {[%emt 0:00:02]} 28. Kd3 {[%emt 0:00:04] Wards off Re2} Rd8+ {[%emt 0:11:31] White got outplayed after the opening.   Weighted Error Value: White=0.07 (flawless) /Black=0.11 (very precise)} 1/2-1/2

[Event "Romanian GP Final KO 2023"]
[Site "Alba Iulia"]
[Date "2023.12.05"]
[Round "1.2"]
[White "Gavrilescu, David"]
[Black "Ardelean, George-Catalin"]
[Result "0-1"]
[ECO "B29"]
[WhiteElo "2534"]
[BlackElo "2433"]
[Annotator "TA"]
[PlyCount "66"]
[EventDate "2023.12.04"]
[EventType "k.o."]
[EventCountry "ROU"]
[SourceTitle "playchess.com"]
[Source "ChessBase"]
[SourceQuality "1"]
[TimeControl "900+5"]

{[%evp 10,66,20,25,29,13,39,-14,-6,-7,-21,-15,-16,-14,-10,-30,-29,-42,-37,-106,-41,-53,-47,-42,73,-58,-62,-122,-131,-121,-129,-129,-45,-92,0,-125,-112,-129,-126,-267,-264,-250,-287,-282,-247,-376,-375,-425,-460,-485,-438,-444,-245,-591,-592,-1472,-1152,-1079,-868]} 1. e4 {[%emt 0:00:06]} c5 {[%emt 0:00:01]} 2. Nf3 {[%emt 0:00:02]} Nf6 {[%emt 0:00:01][%cal Bg8f6,Bf6d5,Bd5b4][%mdl 32]} 3. e5 {[%emt 0:00:06]} Nd5 {[%emt 0:00:01]} 4. Nc3 {[%emt 0:00:02]} e6 {[%emt 0:00:02]} 5. Ne4 {[%emt 0:00:02]} f5 {[%emt 0:00:01]} 6. Nc3 {[%emt 0:00:01]} Nb4 {[%emt 0:00:01] B29: Sicilian: 2 Nf3 Nf6 (Nimzowitsch Variation).} 7. Bc4 {[%emt 0:01:54]} a6 {[%emt 0:00:01]} 8. a3 {[%emt 0:00:11]} (8. d4 $14) 8... N4c6 $11 {[%emt 0:00:08] The position is equal.} 9. d3 {[%emt 0:01:14]} b5 {[%emt 0:00:07]} 10. Ba2 {[%emt 0:00:02] [#]} Nd4 $146 {[%emt 0:01:56]} ({Predecessor:} 10... Bb7 11. O-O Be7 12. Re1 O-O 13. a4 Qb6 14. Be3 Nd4 15. Bxd4 cxd4 16. Ne2 Bxf3 17. gxf3 bxa4 {0-1 Andreev,K (2157)-Willow,J (2401) Cattolica d'Estate op-A 2nd 2022 (4)}) 11. Nxd4 {[%emt 0:02:04]} cxd4 {[%emt 0:00:01]} 12. Ne2 {[%emt 0:00:02]} Nc6 {[%emt 0:03:08]} 13. Bf4 {[%emt 0:00:05]} Bb7 {[%emt 0:01:56]} 14. c3 {[%emt 0:00:36]} (14. h4 $15) 14... Bc5 {[%emt 0:01:26]} (14... g5 15. Nxd4 h5 16. Nxc6 Bxc6 17. Bc1 $14) ({Black should try} 14... dxc3 $17 15. Nxc3 Qh4) 15. h4 {[%emt 0:00:23]} O-O {[%emt 0:00:18]} 16. h5 {[%emt 0:01:19]} Qb6 {[%emt 0:01:51]} (16... a5 $15 {stays ahead.}) 17. Kf1 {[%emt 0:00:18]} (17. b4 $16) 17... a5 $15 {[%emt 0:01:38]} 18. Rc1 {[%emt 0:04:46]} (18. Rh3 $15) 18... dxc3 $17 {[%emt 0:00:31]} 19. bxc3 {[%emt 0:00:01]} Bxa3 {[%emt 0:00:00] Black is more active.} (19... Bxf2 20. d4 $16) 20. Rb1 {[%emt 0:00:01]} Ba6 {[%emt 0:00:17]} (20... a4 $17 {Hoping for ...Be7.} 21. d4 Ne7) 21. Kg1 $15 {[%emt 0:00:45]} Be7 {[%emt 0:00:29]} (21... b4 $17 22. Bb3 Kh8) 22. Rh3 {[%emt 0:00:08]} (22. d4 $11) 22... b4 $17 {[%emt 0:00:12][%cal Bb5b4,Bb4b3][%mdl 32]} 23. d4 {[%emt 0:00:16]} a4 {[%emt 0:00:22] [#] ...Bxe2 would be deadly.} 24. d5 {[%emt 0:00:10] Now White is beyond hope.} (24. cxb4 $17 Bxe2 25. Qxe2 Qxd4 26. Qd3) 24... b3 $1 $19 {[%emt 0:00:01]} 25. dxc6 {[%emt 0:00:18]} Qxc6 {[%emt 0:00:20]} (25... bxa2 26. Rxb6 Bxe2 27. Qa1 $18) 26. Nd4 {[%emt 0:01:12]} Qe4 {[%emt 0:00:02]} 27. Bxb3 {[%emt 0:00:01]} (27. Nxb3 $142 axb3 28. Bxb3) 27... axb3 {[%emt 0:00:07]} ({Inferior is} 27... Qxf4 28. Bxa4 Ra7 29. Qe1 $17) 28. Bd2 {[%emt 0:00:48]} Bc4 {[%emt 0:00:54]} (28... Qxe5 $2 {is the wrong capture.} 29. Qxb3 Rfb8 30. Qd1 $19) 29. Nxb3 {[%emt 0:00:03]} Rfb8 {[%emt 0:00:15]} (29... Qxe5 $2 {too greedy.} 30. h6 $19) 30. Re3 {[%emt 0:00:02]} Qg4 $40 {[%emt 0:00:13][%mdl 128] White is in trouble. White is weak on the light squares} (30... Qb7 $142 31. Rg3 Kf7) 31. f3 $2 {[%emt 0:00:21]} (31. Nd4 Rxb1 32. Qxb1) 31... Qxh5 {[%emt 0:00:05] Black is clearly winning.} 32. Re1 {[%emt 0:00:09]} Bh4 {[%emt 0:00:30][%cal Oh4g3] [#] ( -> ...Bg3!). This pair of bishops is nice.} 33. f4 {[%emt 0:00:14]} Qxd1 {[%emt 0:00:06] Weighted Error Value: White=0.64/Black=0.40} 0-1